fUST/lending_fUST_20250814
["ID","MTS","AMOUNT","RATE_DAILY","PERIOD"]
[379113997,1755149449157,-460.0,0.0001848,2]
[379113999,1755149449168,-460.0,0.0001848,2]
[379114001,1755149449185,-460.0,0.0001848,2]
[379114003,1755149449195,-151.0,0.0001848,2]
[379114005,1755149449206,-1772.62,0.0001848,2]
[379114007,1755149449217,-1017.35,0.0001848,2]
[379114009,1755149449227,-460.0,0.0001848,2]
[379114011,1755149449237,-460.0,0.0001848,2]
[379114013,1755149449248,-460.0,0.0001848,2]
[379114015,1755149449259,-641.62,0.0001848,2]
[379114017,1755149449269,-460.0,0.0001848,2]
[379114018,1755149449279,-151.0,0.0001848,2]
[379114020,1755149449289,-460.0,0.0001848,2]
[379114022,1755149449298,-1784.52,0.0001848,2]
[379114024,1755149449308,-460.0,0.0001848,2]
[379114026,1755149449318,-460.0,0.0001848,2]
[379114028,1755149449328,-460.0,0.0001848,2]
[379114030,1755149449339,-460.0,0.0001848,2]
[379114032,1755149449349,-619.21,0.0001848,2]
[379114034,1755149449359,-488.08481396,0.0001848,2]
[379114036,1755149449368,-460.0,0.0001848,2]
[379114038,1755149449378,-460.0,0.0001848,2]
[379114040,1755149449388,-460.0,0.0001848,2]
[379114042,1755149449400,-673.4,0.0001848,2]
[379114044,1755149449410,-460.0,0.0001848,2]
[379114046,1755149449419,-460.0,0.0001848,2]
[379114048,1755149449428,-151.0,0.0001848,2]
[379114050,1755149449438,-460.0,0.0001848,2]
[379114051,1755149449447,-151.0,0.0001848,2]
[379114053,1755149449456,-963.11,0.0001848,2]
[379114055,1755149449466,-1254.09,0.0001848,2]
[379114057,1755149449475,-17557.29,0.0001848,2]
[379114059,1755149449485,-460.0,0.0001848,2]
[379114061,1755149449494,-3669.32,0.0001848,2]
[379114063,1755149449503,-940.32,0.0001848,2]
[379114065,1755149449513,-1507.04,0.0001848,2]
[379114067,1755149449523,-460.0,0.0001848,2]
[379114069,1755149449533,-460.0,0.0001848,2]
[379114071,1755149449542,-2104.87,0.0001848,2]
[379114073,1755149449551,-460.0,0.0001848,2]
[379114075,1755149449560,-1492.81,0.0001848,2]
[379114077,1755149449570,-831.59,0.0001848,2]
[379114079,1755149449579,-1658.26,0.0001848,2]
[379114081,1755149449589,-460.0,0.0001848,2]
[379114083,1755149449599,-1347.57,0.0001848,2]
[379114085,1755149449609,-460.0,0.0001848,2]
[379114087,1755149449618,-1305.16,0.0001848,2]
[379114088,1755149449627,-460.0,0.0001848,2]
[379114090,1755149449638,-1116.05,0.0001848,2]
[379114092,1755149449649,-2671.25,0.0001848,2]
[379114094,1755149449658,-1022.34,0.0001848,2]
[379114096,1755149449668,-460.0,0.0001848,2]
[379114098,1755149449678,-3781.81,0.0001848,2]
[379114100,1755149449687,-460.0,0.0001848,2]
[379114102,1755149449699,-959.52,0.0001848,2]
[379114104,1755149449709,-1583.34,0.0001848,2]
[379114106,1755149449718,-460.0,0.0001848,2]
[379114108,1755149449727,-1055.36,0.0001848,2]
[379114110,1755149449736,-716.36,0.0001848,2]
[379114112,1755149449745,-488.04,0.0001848,2]
[379114114,1755149449754,-3852.42,0.0001848,2]
[379114116,1755149449764,-151.0,0.0001848,2]
[379114118,1755149449774,-476.97,0.0001848,2]
[379114120,1755149449782,-460.0,0.0001848,2]
[379114122,1755149449792,-1227.85,0.0001848,2]
[379114124,1755149449801,-460.0,0.0001848,2]
[379114125,1755149449811,-460.0,0.0001848,2]
[379114127,1755149449820,-460.0,0.0001848,2]
[379114129,1755149449829,-460.0,0.0001848,2]
[379114131,1755149449839,-483.26827,0.00018481,2]
[379114133,1755149449848,-483.26827,0.00018481,2]
[379114135,1755149449857,-250.764138,0.00018481,2]
[379114137,1755149449866,-151.0,0.00018481,2]
[379114139,1755149449875,-151.0,0.00018481,2]
[379114141,1755149449884,-151.0,0.00018481,2]
[379114143,1755149449894,-373.621329,0.00018481,2]
[379114145,1755149449903,-373.621329,0.00018481,2]
[379114147,1755149449912,-151.0,0.00018481,2]
[379114149,1755149449921,-200.49264809,0.00018481,2]
[379114151,1755149449931,-151.0,0.00018482,2]
[379114152,1755149449940,-151.0,0.00018482,2]
[379114154,1755149449949,-151.0,0.00018482,2]
[379114156,1755149449959,-151.0,0.00018482,2]
[379114158,1755149449968,-151.0,0.00018482,2]
[379114159,1755149449977,-740.189035,0.00018482,2]
[379114160,1755149449986,-740.189035,0.00018482,2]
[379114161,1755149450131,-151.0,0.00018482,2]
[379114162,1755149450141,-460.0,0.00018482,2]
[379114163,1755149450151,-460.0,0.00018482,2]
[379114164,1755149450161,-460.0,0.00018482,2]
[379114165,1755149450171,-460.0,0.00018482,2]
[379114166,1755149450183,-460.0,0.00018482,2]
[379114167,1755149450193,-460.0,0.00018482,2]
[379114168,1755149450203,-460.0,0.00018482,2]
[379114170,1755149450214,-536.48,0.00018482,2]
[379114171,1755149450223,-460.0,0.00018482,2]
[379114172,1755149450233,-460.0,0.00018482,2]
[379114173,1755149450243,-460.0,0.00018482,2]
[379114174,1755149450253,-460.0,0.00018482,2]
[379114175,1755149450263,-460.0,0.00018482,2]
[379114176,1755149450272,-460.0,0.00018482,2]
[379114177,1755149450281,-460.0,0.00018482,2]
[379114178,1755149450290,-474.862729,0.00018482,2]
[379114179,1755149450300,-474.862729,0.00018482,2]
[379114180,1755149450309,-460.0,0.00018482,2]
[379114181,1755149450319,-483.26827,0.00018482,2]
[379114182,1755149450328,-483.26827,0.00018482,2]
[379114183,1755149450337,-483.26827,0.00018482,2]
[379114184,1755149450347,-483.26827,0.00018482,2]
[379114185,1755149450356,-460.0,0.00018482,2]
[379114186,1755149450366,-460.0,0.00018482,2]
[379114187,1755149450375,-799.46,0.00018482,2]
[379114188,1755149450385,-460.0,0.00018482,2]
[379114189,1755149450396,-460.0,0.00018482,2]
[379114190,1755149450406,-460.0,0.00018482,2]
[379114191,1755149450416,-460.0,0.00018482,2]
[379114192,1755149450425,-460.0,0.00018482,2]
[379114193,1755149450434,-460.0,0.00018482,2]
[379114194,1755149450443,-151.0,0.00018482,2]
[379114195,1755149450452,-151.0,0.00018482,2]
[379114196,1755149450462,-241.411951,0.00018482,2]
[379114197,1755149450472,-460.0,0.00018482,2]
[379114198,1755149450481,-459.9,0.00018482,2]
[379114199,1755149450490,-564.7,0.00018482,2]
[379114200,1755149450499,-460.0,0.00018482,2]
[379114201,1755149450509,-460.0,0.00018482,2]
[379114202,1755149450518,-399.02347275,0.00018482,2]
[379114203,1755149450527,-460.0,0.00018482,2]
[379114204,1755149450537,-460.0,0.00018482,2]
[379114205,1755149450546,-460.0,0.00018482,2]
[379114206,1755149450556,-460.0,0.00018482,2]
[379114207,1755149450565,-151.0,0.00018482,2]
[379114208,1755149450574,-460.0,0.00018482,2]
[379114209,1755149450584,-460.0,0.00018482,2]
[379114210,1755149450593,-460.0,0.00018482,2]
[379114211,1755149450603,-549.41535335,0.00018482,2]
[379114212,1755149450613,-460.0,0.00018482,2]
[379114213,1755149450622,-460.0,0.00018482,2]
[379114214,1755149450632,-460.0,0.00018482,2]
[379114215,1755149450642,-462.90612066,0.00018482,2]
[379114216,1755149450658,-460.0,0.00018482,2]
[379114217,1755149450668,-605.55,0.00018482,2]
[379114218,1755149450677,-849.37,0.00018482,2]
[379114219,1755149450686,-329.95083605,0.00018482,2]
[379114220,1755149450695,-460.0,0.00018482,2]
[379114221,1755149450704,-460.0,0.00018482,2]
[379114222,1755149450714,-460.0,0.00018482,2]
[379114223,1755149450723,-460.0,0.00018482,2]
[379114224,1755149450732,-460.0,0.00018482,2]
[379114225,1755149450741,-460.0,0.00018482,2]
[379114226,1755149450751,-460.0,0.00018482,2]
[379114227,1755149450760,-460.0,0.00018482,2]
[379114228,1755149450769,-460.0,0.00018482,2]
[379114229,1755149450778,-460.0,0.00018482,2]
[379114230,1755149450787,-514.28,0.00018482,2]
[379114231,1755149450796,-638.5,0.00018482,2]
[379114232,1755149450805,-460.0,0.00018482,2]
[379114233,1755149450814,-460.0,0.00018482,2]
[379114234,1755149450824,-460.0,0.00018482,2]
[379114235,1755149450833,-460.0,0.00018482,2]
[379114236,1755149450843,-460.0,0.00018482,2]
[379114237,1755149450852,-460.0,0.00018482,2]
[379114238,1755149450862,-211.889268,0.00018482,2]
[379114239,1755149450871,-460.0,0.00018482,2]
[379114240,1755149450880,-460.0,0.00018482,2]
[379114241,1755149450889,-373.621329,0.00018482,2]
[379114242,1755149450902,-373.621329,0.00018482,2]
[379114243,1755149450911,-373.621329,0.00018482,2]
[379114244,1755149450920,-373.621329,0.00018482,2]
[379114245,1755149450930,-460.0,0.00018482,2]
[379114246,1755149450939,-151.0,0.00018482,2]
[379114247,1755149450948,-460.0,0.00018482,2]
[379114248,1755149450957,-460.0,0.00018482,2]
[379114249,1755149450967,-1061.25,0.00018482,2]
[379114250,1755149450976,-460.0,0.00018482,2]
[379114251,1755149450985,-460.0,0.00018482,2]
[379114252,1755149450995,-460.0,0.00018482,2]
[379114253,1755149451005,-460.0,0.00018482,2]
[379114254,1755149451014,-460.0,0.00018482,2]
[379114255,1755149451024,-460.0,0.00018482,2]
[379114256,1755149451033,-780.68,0.00018482,2]
[379114257,1755149451043,-460.0,0.00018482,2]
[379114258,1755149451052,-460.0,0.00018482,2]
[379114259,1755149451062,-460.0,0.00018482,2]
[379114260,1755149451071,-460.0,0.00018482,2]
[379114261,1755149451081,-460.0,0.00018482,2]
[379114262,1755149451090,-460.0,0.00018482,2]
[379114263,1755149451100,-460.0,0.00018482,2]
[379114264,1755149451110,-460.0,0.00018482,2]
[379114265,1755149451119,-460.0,0.00018482,2]
[379114266,1755149451130,-716.7,0.00018482,2]
[379114267,1755149451139,-516.33,0.00018482,2]
[379114269,1755149451152,-460.0,0.00018482,2]
[379114271,1755149451161,-460.0,0.00018482,2]
[379114273,1755149451171,-485.47,0.00018482,2]
[379114275,1755149451183,-460.0,0.00018482,2]
[379114277,1755149451192,-460.0,0.00018482,2]
[379114279,1755149451201,-460.0,0.00018482,2]
[379114281,1755149451211,-460.0,0.00018482,2]
[379114283,1755149451222,-899.66,0.00018482,2]
[379114285,1755149451232,-460.0,0.00018482,2]
[379114287,1755149451242,-460.0,0.00018482,2]
[379114289,1755149451252,-460.0,0.00018482,2]
[379114291,1755149451262,-460.0,0.00018482,2]
[379114293,1755149451271,-460.0,0.00018482,2]
[379114295,1755149451281,-460.0,0.00018482,2]
[379114297,1755149451290,-460.0,0.00018482,2]
[379114299,1755149451299,-480.84,0.00018482,2]
[379114301,1755149451308,-460.0,0.00018482,2]
[379114303,1755149451318,-454.0,0.00018482,2]
[379114305,1755149451328,-460.0,0.00018482,2]
[379114307,1755149451339,-460.0,0.00018482,2]
[379114309,1755149451348,-595.76,0.00018482,2]
[379114311,1755149451358,-703.49,0.00018482,2]
[379114313,1755149451367,-460.0,0.00018482,2]
[379114315,1755149451376,-460.0,0.00018482,2]
[379114317,1755149451386,-500.0,0.00018482,2]
[379114319,1755149451396,-460.0,0.00018482,2]
[379114321,1755149451406,-460.0,0.00018482,2]
[379114323,1755149451416,-460.0,0.00018482,2]
[379114325,1755149451425,-460.0,0.00018482,2]
[379114327,1755149451435,-464.19388588,0.00018482,2]
[379114329,1755149451444,-460.0,0.00018482,2]
[379114331,1755149451453,-1842.04,0.00018482,2]
[379114333,1755149451462,-151.0,0.00018482,2]
[379114335,1755149451471,-460.0,0.00018482,2]
[379114337,1755149451480,-460.0,0.00018482,2]
[379114339,1755149451489,-463.72693309,0.00018482,2]
[379114341,1755149451499,-460.0,0.00018482,2]
[379114343,1755149451507,-460.0,0.00018482,2]
[379114345,1755149451517,-1016.44,0.00018482,2]
[379114347,1755149451526,-460.0,0.00018482,2]
[379114349,1755149451536,-460.0,0.00018482,2]
[379114351,1755149451545,-460.0,0.00018482,2]
[379114353,1755149451554,-460.0,0.00018482,2]
[379114355,1755149451563,-460.0,0.00018482,2]
[379114357,1755149451574,-460.0,0.00018482,2]
[379114358,1755149451583,-151.0,0.00018483,2]
[379114360,1755149451593,-156.960314,0.00018483,2]
[379114362,1755149451602,-151.0,0.00018483,2]
[379114365,1755149451612,-151.0,0.00018483,2]
[379114366,1755149451621,-298.44192,0.00018483,2]
[379114369,1755149451631,-151.0,0.00018483,2]
[379114370,1755149451640,-151.0,0.00018483,2]
[379114372,1755149451651,-474.862729,0.00018483,2]
[379114374,1755149451660,-474.862729,0.00018483,2]
[379114377,1755149451670,-151.0,0.00018483,2]
[379114378,1755149451679,-151.0,0.00018484,2]
[379114380,1755149451688,-151.0,0.00018484,2]
[379114382,1755149451698,-151.0,0.00018484,2]
[379114385,1755149451707,-151.0,0.00018484,2]
[379114386,1755149451717,-151.0,0.00018484,2]
[379114389,1755149451726,-740.189035,0.00018484,2]
[379114391,1755149451736,-740.189035,0.00018484,2]
[379114392,1755149451745,-740.189035,0.00018484,2]
[379114395,1755149451754,-740.189035,0.00018484,2]
[379114396,1755149451764,-474.862729,0.00018484,2]
[379114399,1755149451773,-474.862729,0.00018484,2]
[379114400,1755149451783,-483.26827,0.00018484,2]
[379114401,1755149451792,-483.26827,0.00018484,2]
[379114402,1755149451801,-460.0,0.00018484,2]
[379114403,1755149451811,-460.0,0.00018484,2]
[379114404,1755149451821,-460.0,0.00018484,2]
[379114405,1755149451830,-460.0,0.00018484,2]
[379114406,1755149451840,-591.16,0.00018484,2]
[379114407,1755149451849,-151.0,0.00018484,2]
[379114408,1755149451858,-567.63,0.00018484,2]
[379114409,1755149451868,-460.0,0.00018484,2]
[379114410,1755149451878,-460.0,0.00018484,2]
[379114411,1755149451887,-373.621329,0.00018484,2]
[379114412,1755149451897,-373.621329,0.00018484,2]
[379114413,1755149451907,-460.0,0.00018484,2]
[379114414,1755149451917,-151.0,0.00018484,2]
[379114415,1755149451926,-151.0,0.00018485,2]
[379114416,1755149451936,-527.524838,0.00018485,2]
[379114417,1755149451946,-527.524838,0.00018485,2]
[379114418,1755149451957,-151.0,0.00018485,2]
[379114419,1755149451967,-591.24,0.00018485,2]
[379114420,1755149451977,-460.0,0.00018485,2]
[379114421,1755149451987,-460.0,0.00018485,2]
[379114422,1755149451996,-599.0,0.00018485,2]
[379114423,1755149452006,-460.0,0.00018485,2]
[379114425,1755149452016,-460.0,0.00018485,2]
[379114427,1755149452025,-460.0,0.00018485,2]
[379114429,1755149452035,-460.0,0.00018485,2]
[379114430,1755149452043,-717.46,0.00018485,2]
[379114432,1755149452053,-460.0,0.00018485,2]
[379114433,1755149452063,-460.0,0.00018485,2]
[379114434,1755149452072,-460.0,0.00018485,2]
[379114435,1755149452082,-1077.89,0.00018485,2]
[379114436,1755149452091,-460.0,0.00018485,2]
[379114437,1755149452100,-460.0,0.00018485,2]
[379114438,1755149452110,-151.0,0.00018485,2]
[379114439,1755149452120,-460.0,0.00018485,2]
[379114440,1755149452130,-460.0,0.00018485,2]
[379114441,1755149452140,-460.0,0.00018485,2]
[379114442,1755149452152,-567.19374924,0.00018485,2]
[379114443,1755149452163,-460.0,0.00018485,2]
[379114444,1755149452173,-460.0,0.00018485,2]
[379114445,1755149452187,-460.0,0.00018485,2]
[379114446,1755149452197,-460.0,0.00018485,2]
[379114447,1755149452206,-460.0,0.00018485,2]
[379114448,1755149452216,-460.0,0.00018485,2]
[379114449,1755149452226,-460.0,0.00018485,2]
[379114450,1755149452236,-460.0,0.00018485,2]
[379114451,1755149452246,-460.0,0.00018485,2]
[379114452,1755149452256,-190.45,0.00018486,2]
[379114453,1755149452266,-190.45,0.00018486,2]
[379114454,1755149452275,-151.0,0.00018486,2]
[379114455,1755149452285,-151.0,0.00018486,2]
[379114456,1755149452295,-527.524838,0.00018486,2]
[379114457,1755149452304,-527.524838,0.00018486,2]
[379114458,1755149452313,-151.438601,0.00018486,2]
[379114459,1755149452324,-483.26827,0.00018486,2]
[379114460,1755149452333,-483.26827,0.00018486,2]
[379114461,1755149452343,-151.0,0.00018486,2]
[379114462,1755149452352,-373.621329,0.00018486,2]
[379114463,1755149452362,-373.621324,0.00018486,2]
[379114464,1755149452371,-514.33477381,0.00018486,2]
[379114465,1755149452380,-151.0,0.00018493,2]
[379114466,1755149452390,-190.45,0.00018494,2]
[379114467,1755149452405,-190.45,0.00018494,2]
[379114468,1755149452413,-151.0,0.00018494,2]
[379114469,1755149452423,-527.524838,0.00018494,2]
[379114470,1755149452431,-527.524838,0.00018494,2]
[379114471,1755149452441,-151.0,0.00018494,2]
[379114472,1755149452450,-151.0,0.00018494,2]
[379114473,1755149452459,-740.189035,0.00018494,2]
[379114474,1755149452468,-740.189035,0.00018494,2]
[379114475,1755149452477,-474.862729,0.00018494,2]
[379114476,1755149452486,-474.862729,0.00018494,2]
[379114477,1755149452495,-151.0,0.00018494,2]
[379114478,1755149452505,-151.0,0.00018495,2]
[379114479,1755149452514,-190.45,0.00018495,2]
[379114480,1755149452523,-190.45,0.00018495,2]
[379114481,1755149452532,-151.0,0.00018495,2]
[379114482,1755149452541,-527.524838,0.00018495,2]
[379114483,1755149452551,-527.524838,0.00018495,2]
[379114484,1755149452560,-151.84323,0.00018495,2]
[379114485,1755149452569,-190.45,0.00018497,2]
[379114486,1755149452579,-190.45,0.00018497,2]
[379114487,1755149452588,-198.304708,0.00018497,2]
[379114488,1755149452597,-190.45,0.00018498,2]
[379114489,1755149452606,-190.45,0.00018498,2]
[379114490,1755149452615,-527.524838,0.00018498,2]
[379114491,1755149452624,-527.524838,0.00018498,2]
[379114492,1755149452633,-317.0,0.00018548,2]
[379114493,1755149452642,-317.0,0.00018553,2]
[379114494,1755149452657,-3696.0,0.00018558,2]
[379114495,1755149452666,-200.0,0.00018559,20]
[379114496,1755149452676,-200.0,0.00018559,20]
[379114497,1755149452686,-200.0,0.00018559,20]
[379114498,1755149452695,-200.0,0.00018559,20]
[379114499,1755149452704,-200.0,0.00018559,20]
[379114500,1755149452714,-200.0,0.00018559,20]
[379114501,1755149452723,-317.0,0.0001857,2]
[379114502,1755149452733,-151.0,0.0001859,3]
[379114503,1755149452742,-151.0,0.0001859,3]
[379114504,1755149452752,-151.0,0.0001859,2]
[379114505,1755149452761,-151.0,0.0001859,3]
[379114506,1755149452771,-151.0,0.0001859,3]
[379114507,1755149452780,-294.18199168,0.0001859,3]
[379114508,1755149452928,-247.87737539,0.0001859,3]
[379114509,1755149452939,-151.0,0.0001859,3]
[379114510,1755149452949,-153.0,0.000186,2]
[379114511,1755149452958,-153.0,0.000186,2]
[379114512,1755149452967,-153.0,0.000186,2]
[379114513,1755149452977,-153.0,0.000186,2]
[379114514,1755149452987,-153.0,0.000186,2]
[379114515,1755149452996,-153.0,0.000186,2]
[379114516,1755149453006,-153.0,0.000186,2]
[379114517,1755149453016,-253.8685662,0.000186,2]
[379114518,1755149453025,-153.0,0.000186,2]
[379114519,1755149453035,-153.0,0.000186,2]
[379114520,1755149453045,-153.0,0.000186,2]
[379114521,1755149453055,-317.0,0.00018604,2]
[379114522,1755149453064,-4952.0,0.00018608,2]
[379114523,1755149453074,-317.0,0.00018676,2]
[379114524,1755149453084,-317.0,0.00018691,2]
[379114525,1755149453094,-317.0,0.00018696,2]
[379114526,1755149453103,-1000.0,0.000187,2]
[379114527,1755149453113,-1010.99,0.000187,3]
[379114528,1755149453122,-4952.0,0.00018714,2]
[379114529,1755149453132,-317.0,0.00018742,2]
[379114530,1755149453141,-460.0,0.00018744,2]
[379114531,1755149453154,-770.95,0.00018744,2]
[379114532,1755149453163,-1051.72,0.00018744,2]
[379114533,1755149453173,-2761.93,0.00018744,2]
[379114534,1755149453186,-638.77,0.00018744,2]
[379114535,1755149453196,-460.0,0.00018744,2]
[379114536,1755149453206,-460.0,0.00018744,2]
[379114537,1755149453215,-800.21,0.00018751,2]
[379114538,1755149453226,-502.14,0.00018751,2]
[379114539,1755149453236,-3828.25,0.00018751,2]
[379114540,1755149453245,-4678.59,0.00018751,2]
[379114541,1755149453256,-460.0,0.00018751,2]
[379114542,1755149453265,-1101.73,0.00018751,2]
[379114543,1755149453274,-460.0,0.00018751,2]
[379114544,1755149453284,-460.0,0.00018751,2]
[379114545,1755149453294,-578.59,0.00018751,2]
[379114546,1755149453303,-562.2059956,0.00018751,2]
[379114547,1755149453313,-2138.33,0.00018751,2]
[379114548,1755149453322,-1013.97,0.00018751,2]
[379114549,1755149453332,-4399.81,0.00018751,2]
[379114550,1755149453342,-4333.78,0.00018751,2]
[379114551,1755149453351,-460.0,0.00018751,2]
[379114552,1755149453360,-6460.85,0.00018751,2]
[379114553,1755149453369,-809.25,0.00018751,2]
[379114554,1755149453378,-460.0,0.00018751,2]
[379114555,1755149453388,-480.29,0.00018751,2]
[379114556,1755149453398,-589.0,0.00018751,2]
[379114557,1755149453408,-1116.98,0.00018751,2]
[379114558,1755149453417,-2940.49,0.00018751,2]
[379114559,1755149453426,-1065.4,0.00018751,2]
[379114560,1755149453436,-460.0,0.00018751,2]
[379114561,1755149453446,-1544.78,0.00018751,2]
[379114562,1755149453455,-576.00296941,0.00018751,2]
[379114563,1755149453465,-460.0,0.00018751,2]
[379114564,1755149453474,-471.03347464,0.00018751,2]
[379114565,1755149453484,-460.0,0.00018751,2]
[379114566,1755149453494,-460.0,0.00018752,2]
[379114567,1755149453503,-704.76,0.00018752,2]
[379114568,1755149453513,-391.83370123,0.00018752,2]
[379114569,1755149453523,-460.0,0.00018752,2]
[379114570,1755149453533,-460.0,0.00018752,2]
[379114571,1755149453542,-463.59382057,0.00018752,2]
[379114572,1755149453552,-1372.05,0.00018752,2]
[379114573,1755149453561,-2295.5,0.00018752,2]
[379114574,1755149453571,-1075.86,0.00018752,2]
[379114575,1755149453580,-460.0,0.00018752,2]
[379114576,1755149453589,-468.44808466,0.00018752,2]
[379114577,1755149453598,-460.0,0.00018752,2]
[379114578,1755149453607,-460.0,0.00018752,2]
[379114579,1755149453617,-840.85,0.00018752,2]
[379114580,1755149453627,-460.0,0.00018752,2]
[379114581,1755149453636,-878.7,0.00018752,2]
[379114582,1755149453648,-528.56070717,0.00018752,2]
[379114583,1755149453658,-460.0,0.00018752,2]
[379114584,1755149453668,-460.0,0.00018752,2]
[379114585,1755149453678,-1618.07,0.00018752,2]
[379114586,1755149453687,-460.0,0.00018752,2]
[379114587,1755149453696,-620.49,0.00018752,2]
[379114588,1755149453706,-1133.7,0.00018752,2]
[379114589,1755149453715,-587.36,0.00018752,2]
[379114590,1755149453724,-869.44,0.00018752,2]
[379114591,1755149453734,-1231.38,0.00018752,2]
[379114592,1755149453743,-581.91,0.00018752,2]
[379114593,1755149453753,-1086.09,0.00018752,2]
[379114594,1755149453762,-460.0,0.00018752,2]
[379114596,1755149453771,-460.0,0.00018752,2]
[379114598,1755149453781,-460.0,0.00018752,2]
[379114599,1755149453790,-539.49627462,0.00018752,2]
[379114601,1755149453799,-460.0,0.00018752,2]
[379114604,1755149453809,-460.0,0.00018752,2]
[379114606,1755149453818,-1683.23,0.00018752,2]
[379114607,1755149453828,-1028.64,0.00018752,2]
[379114608,1755149453837,-460.0,0.00018752,2]
[379114609,1755149453847,-938.86,0.00018752,2]
[379114610,1755149453856,-460.0,0.00018752,2]
[379114611,1755149453866,-460.0,0.00018752,2]
[379114612,1755149453875,-460.0,0.00018752,2]
[379114613,1755149453884,-963.63,0.00018752,2]
[379114614,1755149453893,-479.31,0.00018752,2]
[379114615,1755149453906,-500.0,0.00018752,2]
[379114616,1755149453916,-1479.72,0.00018752,2]
[379114617,1755149453926,-460.0,0.00018752,2]
[379114618,1755149453936,-460.0,0.00018752,2]
[379114620,1755149453946,-460.0,0.00018752,2]
[379114622,1755149453956,-460.0,0.00018753,2]
[379114624,1755149453965,-460.0,0.00018753,2]
[379114626,1755149453975,-472.47416449,0.00018753,2]
[379114628,1755149453985,-460.0,0.00018753,2]
[379114630,1755149453995,-460.0,0.00018753,2]
[379114631,1755149454004,-460.0,0.00018753,2]
[379114633,1755149454014,-460.0,0.00018753,2]
[379114635,1755149454024,-460.0,0.00018753,2]
[379114637,1755149454033,-482.48,0.00018753,2]
[379114639,1755149454043,-460.0,0.00018753,2]
[379114641,1755149454052,-460.0,0.00018753,2]
[379114643,1755149454062,-460.0,0.00018753,2]
[379114646,1755149454072,-460.0,0.00018753,2]
[379114648,1755149454082,-460.0,0.00018753,2]
[379114650,1755149454091,-466.58978705,0.00018753,2]
[379114651,1755149454100,-460.0,0.00018753,2]
[379114652,1755149454110,-464.17,0.00018753,2]
[379114653,1755149454119,-460.0,0.00018753,2]
[379114654,1755149454128,-460.0,0.00018753,2]
[379114656,1755149454138,-554.27,0.00018753,2]
[379114658,1755149454149,-460.0,0.00018753,2]
[379114660,1755149454158,-514.98,0.00018753,2]
[379114662,1755149454168,-460.0,0.00018753,2]
[379114664,1755149454180,-460.0,0.00018753,2]
[379114666,1755149454189,-464.01710952,0.00018753,2]
[379114667,1755149454198,-460.0,0.00018753,2]
[379114669,1755149454207,-460.0,0.00018753,2]
[379114671,1755149454218,-475.14316991,0.00018753,2]
[379114673,1755149454228,-460.0,0.00018753,2]
[379114675,1755149454237,-460.0,0.00018753,2]
[379114677,1755149454246,-463.47040487,0.00018753,2]
[379114679,1755149454257,-763.04,0.00018753,2]